Cogmind - Beta 12 @@@ ROGUE MODE // 2023.03.04 @ 12:48:55 Player: Plexion Result: Self-destructed Performance ------------- Evolutions (5) 2500 Regions Visited (17) 3400 Robots Destroyed (120) 600 Value Destroyed (3171) 3171 Prototype IDs (50) 1000 Alien Tech Used (0) 0 Bonus (-2697) -2697 TOTAL SCORE: 7974 Bonus ------- High Alert Combat Kills 11 Follower Combat Kills 846 Aligned with FarCom 300 Met Data Miner 300 Friendly Fire -4154 Cogmind --------- Core Integrity 863/1000 Matter 300/300 Energy 70/100 System Corruption 2% Temperature Cool (0) Movement Hovering (62) Location -5/Upper Caves Parts ------- > --- POWER (1) -------- (None) > --- PROPULSION (4) --- Cooled Gravmag System Combat Antigrav System Combat Antigrav System Combat Antigrav System > --- UTILITY (10) ----- Large Storage Unit Machine Analyzer Improved Signal Interpreter Hacking Suite Improved Hacking Suite Advanced Hacking Suite Mapping Drone Bay (2/3) Combat Drone Bay (0/2) > --- WEAPON (2) ------- Advanced Plasma Cannon Great Axe > --- INVENTORY (15) --- Combat Antigrav System Combat Antigrav System Advanced Energy Well (500) Advanced Sensor Array Advanced Hacking Suite Advanced System Shield Authchip [Device] Combat Drone Bay (0/2) Long-range Proton Cannon Rocket Launcher Long-range Missile Launcher Improved Plasma Cutter Peak State ------------ > --- POWER ------------ Mini Fusion Reactor > --- PROPULSION ------- Cooled Gravmag System Cooled Gravmag System Combat Antigrav System Combat Antigrav System > --- UTILITY ---------- Large Storage Unit Machine Analyzer Enhanced Optical Array Advanced Sensor Array Improved Signal Interpreter Centrium Light Armor Plating Hacking Suite Hacking Suite Improved Hacking Suite Mapping Drone Bay > --- WEAPON ----------- 01-MTF's Shockpuncher Great Axe > --- INVENTORY -------- Combat Antigrav System Combat Antigrav System Combat Antigrav System Advanced Energy Well Advanced Sensor Array Advanced Sensor Array Insulated Plating Authchip [Device] 01-MTF's Autohacker System Guard Long-range Proton Cannon Advanced Plasma Cannon Rocket Launcher Long-range Missile Launcher Plasma Cutter [Rating: 100] Favorites ----------- Power Reinforced Fission Core Engine Light Ion Engine Power Core Reinforced Fission Core Reactor Mini Fusion Reactor Propulsion Light Treads Treads Light Treads Hover Unit Combat Antigrav System Flight Unit Improved Cesium-ion Thruster Utility Hacking Suite Device Advanced Sensor Array Storage High-capacity Storage Unit Processor Machine Analyzer Hackware Hacking Suite Protection Light Armor Plating Weapon Enhanced Autogun Energy Gun 01-MTF's Shockpuncher Energy Cannon Advanced Plasma Cannon Ballistic Gun Enhanced Autogun Ballistic Cannon Light Cannon Launcher Mini Grenade Launcher Special Weapon Plasma Cutter Slashing Weapon Great Axe Build | -11 -10 -10 -9 -9 -9 -8 -8 -7 -7 -6 -6 -6 -6 -5 -5 -5 -5 ------- Run | Jun Mat Min Mat Min Exi Min Mat Fac Sto Fac Low Low Dat Pro Fac Upp Upp Slots Evolved 10 | . . . 2 . . . 2 2 . 2 . . . . 2 . . Power . | . . . . . . . . . . . . . . . . . . Propulsion 2 | . . . 1 . . . . . . 1 . . . . . . . Utility 8 | . . . 1 . . . 2 2 . 1 . . . . 2 . . Weapon . | . . . . . . . . . . . . . . . . . . Parts Attached 181 | 7 5 8 15 3 30 7 17 15 21 25 1 . . 2 23 2 . Power 7 | 1 . . 1 . 2 . . 1 1 . . . . . 1 . . Engine 3 | 1 . . 1 . 1 . . . . . . . . . . . . Core 3 | . . . . . 1 . . 1 . . . . . . 1 . . Reactor 1 | . . . . . . . . . 1 . . . . . . . . Propulsion 40 | 2 . 1 3 2 6 1 6 3 9 5 . . . . 1 1 . Treads 19 | 2 . 1 3 2 6 1 4 . . . . . . . . . . Leg . | . . . . . . . . . . . . . . . . . . Wheel . | . . . . . . . . . . . . . . . . . . Hover 10 | . . . . . . . . . 3 5 . . . . 1 1 . Flight 11 | . . . . . . . 2 3 6 . . . . . . . . Utility 74 | 1 1 1 5 1 9 1 6 5 5 15 1 . . 2 20 1 . Device 27 | . . 1 1 . 5 . 1 1 1 4 1 . . 1 10 1 . Storage 12 | 1 1 . . . . . . 1 2 3 . . . . 4 . . Processor 6 | . . . 1 . 1 . 2 1 . 1 . . . . . . . Hackware 10 | . . . . . . . 1 1 . 4 . . . . 4 . . Protection 19 | . . . 3 1 3 1 2 1 2 3 . . . 1 2 . . Artifact . | . . . . . . . . . . . . . . . . . . Weapon 60 | 3 4 6 6 . 13 5 5 6 6 5 . . . . 1 . . Energy Gun 6 | 2 . 2 . . . . . . 1 1 . . . . . . . Energy Cannon 1 | . . . . . . . . . . . . . . . 1 . . Ballistic Gun 31 | 1 2 3 5 . 7 4 3 4 2 . . . . . . . . Ballistic Cannon 1 | . 1 . . . . . . . . . . . . . . . . Launcher 10 | . 1 1 1 . 2 1 2 . 1 1 . . . . . . . Special Weapon 8 | . . . . . 4 . . 2 2 . . . . . . . . Impact Weapon . | . . . . . . . . . . . . . . . . . . Slashing Weapon 3 | . . . . . . . . . . 3 . . . . . . . Piercing Weapon . | . . . . . . . . . . . . . . . . . . Special Melee Weapon . | . . . . . . . . . . . . . . . . . . Unidentified Prototypes 17 | . . . 2 . 6 . 2 . 6 1 . . . . . . . Parts Lost 22 | . . 6 . . 8 1 . . 1 1 . . . . 3 . 2 Power 5 | . . 1 . . 2 . . . . . . . . . 1 . 1 Propulsion 4 | . . 1 . . 3 . . . . . . . . . . . . Utility 7 | . . . . . 2 1 . . 1 1 . . . . 1 . 1 Weapon 6 | . . 4 . . 1 . . . . . . . . . 1 . . Highest Loss Streak 5 | . . 5 . . 4 1 . . 1 1 . . . . 2 . 2 To Critical Strikes 2 | . . . . . 2 . . . . . . . . . . . . Average Slot Usage (%) 94 | . 85 84 98 100 88 100 99 88 89 93 100 100 100 100 97 94 91 Engine 4 | . 14 5 11 11 5 . . . . . . . . . . . . Core 3 | . . . . . 5 11 9 7 6 . . . . . 1 5 3 Reactor 1 | . . . . . . . . . . 6 6 6 6 6 3 . . Treads 20 | . 28 27 31 33 31 33 26 . . . . . . . . . . Hover 6 | . . . . . . . . . 1 24 26 26 26 26 23 23 23 Flight 1 | . . . . . . . . 22 21 . . . . . . . . Device 6 | . . 12 10 . 3 . 7 7 7 5 6 6 6 7 7 17 15 Storage 9 | . 14 14 11 11 11 11 9 7 7 6 6 6 6 6 5 5 5 Processor 10 | . . . . 11 10 11 9 14 15 19 20 20 20 20 15 11 11 Hackware 5 | . . . . . . . 8 14 15 13 13 13 13 13 18 17 17 Protection 6 | . . . 11 11 6 11 10 7 5 4 6 6 6 4 6 . . Energy Gun 1 | . 2 9 1 . . . . . . 3 6 6 6 6 3 . . Ballistic Gun 10 | . 14 12 20 22 8 14 17 1 1 . . . . . . . . Special Weapon 1 | . . . . . 5 . . 3 5 . . . . . . . . Slashing Weapon 1 | . . . . . . . . . . 5 6 6 6 6 5 5 5 Naked Turns . | . . . . . . . . . . . . . . . . . . Heaviest Build 79 | 14 55 50 54 54 76 76 79 20 37 43 43 41 41 41 54 55 55 Greatest Support 64 | 40 40 40 60 60 60 60 60 15 38 64 54 54 54 54 54 59 59 Greatest Overweight (x) 1 | . 1 1 1 . 1 1 1 1 . . . . . . . . . Average Overweight (x) . | . . 1 . . . 1 1 . . . . . . . . . . Largest Inventory Capacity 20 | 8 20 20 20 20 20 20 20 20 15 15 15 15 15 15 15 15 15 Average Capacity 17 | 7 13 20 20 20 20 20 20 8 8 15 15 15 15 15 15 15 15 Most Carried 20 | 2 9 8 20 20 20 20 20 20 8 10 12 12 12 14 15 15 13 Average Carried 14 | 1 7 6 13 19 18 19 19 8 7 7 9 12 12 12 13 12 13 Final Capacity 20 | 8 20 20 20 20 20 20 20 8 15 15 15 15 15 15 15 15 15 Final Carried 20 | 2 8 6 20 20 20 19 20 8 8 9 12 12 12 14 15 13 13 Class Distribution -------------------- 42% | Scavenger-Mutant 28% | Mutant 20% | Scavenger-Scout 7% | Hacker-Scout Dominant Class ---------------- Mutant | -10/Materials Mutant | -10/Mines Scavenger-Mutant | -9/Materials Scavenger-Mutant | -9/Mines Scavenger-Mutant | -9/Exiles Scavenger-Mutant | -8/Mines Scavenger-Mutant | -8/Materials Scavenger-Scout | -7/Factory Hacker-Scout | -7/Storage Scavenger-Scout | -6/Factory Scavenger-Scout | -6/Lower Caves Scavenger-Scout | -6/Lower Caves Scavenger-Scout | -6/Data Miner Scavenger-Scout | -5/Proximity Caves Scavenger-Scout | -5/Factory Hacker-Scout | -5/Upper Caves Hacker-Scout | -5/Upper Caves Resources | -11 -10 -10 -9 -9 -9 -8 -8 -7 -7 -6 -6 -6 -6 -5 -5 -5 -5 ----------- Run | Jun Mat Min Mat Min Exi Min Mat Fac Sto Fac Low Low Dat Pro Fac Upp Upp Matter Collected 4007 | 220 150 191 419 105 758 286 743 193 385 83 29 95 . 74 225 51 . Remotely . | . . . . . . . . . . . . . . . . . . Salvage Created 4723 | . 209 239 456 176 491 373 1452 193 300 129 . . . . 571 134 . Parts 342 | . 17 13 36 15 79 14 87 13 21 9 . . . . 33 5 . Haulers Intercepted 9 | . . . 3 . . . 5 . 1 . . . . . . . . Recyclers Shooed 5 | . . . . . . 1 3 . 1 . . . . . . . . Parts Field Recycled . | . . . . . . . . . . . . . . . . . . Retrieved Matter . | . . . . . . . . . . . . . . . . . . Parts Self-Destructed 26 | . . . . . . . . . . . 1 . . 7 . 15 3 Prevented 1 | . . . . . . . . . . . . . . . . . 1 Kills | -11 -10 -10 -9 -9 -9 -8 -8 -7 -7 -6 -6 -6 -6 -5 -5 -5 -5 ------- Run | Jun Mat Min Mat Min Exi Min Mat Fac Sto Fac Low Low Dat Pro Fac Upp Upp Combat Hostiles Destroyed 75 | . 7 6 7 2 3 8 24 3 4 2 . . . . 8 1 . Melee 1 | . . . . . . . . . . . . . . . 1 . . Guns 45 | . 3 5 4 2 1 5 17 3 1 . . . . . 4 . . Cannons 3 | . 2 . . . . . . . . . . . . . . 1 . AOE 23 | . 2 1 3 . 2 3 7 . 3 1 . . . . 1 . . Classes Destroyed 21 | . 5 3 5 . 3 2 . . . 1 . . . . 2 . . Worker 12 | . . 3 3 . . 1 1 . . 1 . . . . 3 . . Builder 3 | . 1 . . . . . 1 . . . . . . . 1 . . Tunneler 1 | . . . 1 . . . . . . . . . . . . . . Hauler 9 | . . . 3 . . . 5 . 1 . . . . . . . . Recycler 6 | . . 1 . 1 . . 3 . 1 . . . . . . . . Mechanic 1 | . . . 1 . . . . . . . . . . . . . . Operator 3 | . 1 . . . . . 1 1 . . . . . . . . . Turret 1 | . . . . . 1 . . . . . . . . . . . . Watcher 6 | . 1 . 1 . . . 1 . . 1 . . . . 2 . . Swarmer 21 | . 3 1 3 . . . 7 . 3 . . . . . 4 . . Cutter 1 | . . . . . . . . . . 1 . . . . . . . Grunt 29 | . 4 3 . . . 5 13 3 1 . . . . . . . . Brawler 1 | . . . . . . 1 . . . . . . . . . . . Duelist 1 | . . . 1 . . . . . . . . . . . . . . Sentry 10 | . . . 3 2 . . 3 . . 1 . . . . 1 . . Demolisher 2 | . . 2 . . . . . . . . . . . . . . . Hunter 3 | . . . . . . 2 1 . . . . . . . . . . Programmer 3 | . . . . . . . . . . . . . . . 2 1 . Heavy 1 | . . . . . . . . . . . . . . . 1 . . Zionite 2 | . . . . . 2 . . . . . . . . . . . . Assembled 2 | . . . . . 2 . . . . . . . . . . . . Best Kill Streak 10 | . 6 2 5 2 2 4 10 4 4 2 . . . . 4 1 . Combat Bots Only 7 | . 4 2 3 2 2 3 7 3 3 2 . . . . 4 1 . Max Kills in Single Turn 5 | . 3 1 5 1 2 1 2 1 2 1 . . . . 1 1 . Gunslinging . | . . . . . . . . . . . . . . . . . . Exploded 3 | . 2 1 3 . 2 1 2 . 2 1 . . . . 1 . . Melee 1 | . . . . . . . . . . . . . . . 1 . . Uniques/NPCs Destroyed 5 | . . . . . 4 . . . 1 . . . . . . . . 8R-AWN (-9/Exiles) EX-DEC (-9/Exiles) EX-BIN (-9/Exiles) EX-HEX (-9/Exiles) 01-MTF (-7/Storage) Combat | -11 -10 -10 -9 -9 -9 -8 -8 -7 -7 -6 -6 -6 -6 -5 -5 -5 -5 -------- Run | Jun Mat Min Mat Min Exi Min Mat Fac Sto Fac Low Low Dat Pro Fac Upp Upp Damage Taken 5877 | . 277 644 185 105 1593 336 852 140 180 49 . . . . 1432 . 84 Core 606 | . . 105 21 . 51 19 172 13 82 6 . . . . 137 . . Absorbed by Shields 73 | . . . 43 . . . . . . . . . . . 30 . . Regen/Repaired (Parts) 196 | . . . . . . . 196 . . . . . . . . . . Core Remaining (%) 81 | 100 . 58 . . . 77 68 . 86 . . . . 99 . . . Volleys Fired 503 | . 12 34 46 10 142 22 68 9 113 9 . . . . 36 2 . Largest 2 | . 2 2 2 2 2 2 2 2 1 1 . . . . 1 1 . Hottest 98 | . 55 80 60 48 50 60 53 60 33 50 . . . . 98 98 . Shots Fired 706 | . 23 57 91 20 179 33 131 12 113 9 . . . . 36 2 . Gun 485 | . 11 51 90 20 104 27 126 12 4 8 . . . . 32 . . Cannon 20 | . 11 3 . . . . . . . . . . . . 4 2 . Launcher 20 | . 1 3 1 . 1 6 5 . 2 1 . . . . . . . Special 181 | . . . . . 74 . . . 107 . . . . . . . . Kinetic 437 | . 22 35 87 20 104 27 126 12 4 . . . . . . . . Thermal 201 | . . 11 3 . 74 . . . 107 . . . . . 4 2 . Explosive 20 | . 1 3 1 . 1 6 5 . 2 1 . . . . . . . Electromagnetic 48 | . . 8 . . . . . . . 8 . . . . 32 . . Robot Hit Streak 35 | . 2 8 9 10 35 10 15 4 5 5 . . . . 10 2 . Robot Miss Streak 8 | . 2 4 4 1 3 5 4 2 8 3 . . . . 4 . . Penetration Max 2 | . . . . . . 1 1 2 1 . . . . . . . . Secondary Targets 3 | . . . 1 . . 2 . . . . . . . . . . . Max Gunslinging Chain 1 | . . . 1 . . 1 . . . . . . . . . . . Shots Hit Robots 500 | . 11 35 54 15 134 21 103 8 66 8 . . . . 38 5 2 Core Hits 244 | . 12 18 27 5 44 16 59 5 31 5 . . . . 20 2 . Critical Kills 11 | . 1 . . . . 4 1 2 2 . . . . . 1 . . Critical Parts Destroyed 14 | . . . 1 1 3 6 1 2 . . . . . . . . . Critical Strikes 31 | . 1 . 1 1 4 11 2 4 3 2 . . . . 2 . . Meltdown 1 | . . . . . . . . . . . . . . . 1 . . Destroy 25 | . 1 . 1 1 3 11 2 4 2 . . . . . . . . Corrupt 3 | . . . . . . . . . . 2 . . . . 1 . . Sever 2 | . . . . . 1 . . . 1 . . . . . . . . Melee Attacks 92 | . . . . . . . . . . 17 10 2 . 17 41 3 2 Impact . | . . . . . . . . . . . . . . . . . . Slashing 92 | . . . . . . . . . . 17 10 2 . 17 41 3 2 Piercing . | . . . . . . . . . . . . . . . . . . Sneak Attacks 7 | . . . . . . . . . . 2 . . . . 5 . . Combat Hostiles . | . . . . . . . . . . . . . . . . . . Follow-up Attacks . | . . . . . . . . . . . . . . . . . . Damage Inflicted 10377 | . 374 584 1017 237 1679 848 2550 197 595 386 . . . . 1520 311 79 Guns 6201 | . 64 328 769 237 1075 353 2090 197 67 204 . . . . 817 . . Cannons 373 | . 136 37 . . . . . . . . . . . . 117 83 . Explosions 2024 | . 174 219 248 . 58 494 460 . 236 39 . . . . 96 . . Melee 940 | . . . . . . . . . . 143 . . . . 490 228 79 Ramming 1 | . . . . . . 1 . . . . . . . . . . . Kinetic 5194 | . 200 229 746 237 1075 353 2090 197 67 . . . . . . . . Thermal 1247 | . . 90 23 . 546 . . . 292 . . . . . 213 83 . Explosive 1928 | . 174 219 248 . 58 494 460 . 236 39 . . . . . . . Electromagnetic 1067 | . . 46 . . . . . . . 204 . . . . 817 . . Impact . | . . . . . . . . . . . . . . . . . . Slashing 940 | . . . . . . . . . . 143 . . . . 490 228 79 Piercing . | . . . . . . . . . . . . . . . . . . Highest Corruption 2 | . . . 1 1 1 1 . . 2 . . . . . 2 2 2 Average Corruption 1 | . . . 1 1 1 1 . . 1 . . . . . 1 2 2 Corruption Purged . | . . . . . . . . . . . . . . . . . . Corruption Blocked 8 | . . . . . . . . . . . . . . . 8 . . Effects 42 | . . . 4 5 13 10 . . 4 . . . . . 2 4 . Message Errors 8 | . . . 1 . 2 2 . . 1 . . . . . 1 1 . Matter Fused 19 | . . . 1 1 7 5 . . 2 . . . . . . 3 . Heat Flow Errors 3 | . . . . 1 2 . . . . . . . . . . . . Energy Discharges 1 | . . . 1 . . . . . . . . . . . . . . Data Loss (minor) 8 | . . . 1 3 1 2 . . . . . . . . 1 . . Data Loss (major) 3 | . . . . . 1 1 . . 1 . . . . . . . . Overload Shots . | . . . . . . . . . . . . . . . . . . Overflow Damage 238 | . . 9 . . 29 . 9 . 9 30 . . . . 64 88 . Projectiles 32 | . . . . . 29 . . . 3 . . . . . . . . Explosions 24 | . . 9 . . . . 9 . 6 . . . . . . . . Melee 182 | . . . . . . . . . . 30 . . . . 64 88 . Knockbacks 3 | . 2 1 . . . . . . . . . . . . . . . Impact . | . . . . . . . . . . . . . . . . . . Kinetic 3 | . 2 1 . . . . . . . . . . . . . . . Secondary . | . . . . . . . . . . . . . . . . . . Self-Inflicted Damage 242 | . 36 . . . . 49 55 . 46 . . . . . 56 . . Shots 6 | . 1 . . . . 1 2 . 1 . . . . . 1 . . Rammed 1 | . . . . . . 1 . . . . . . . . . . . Targets Rammed 1 | . . . . . . 1 . . . . . . . . . . . Kicked . | . . . . . . . . . . . . . . . . . . Crushed . | . . . . . . . . . . . . . . . . . . Highest Temperature 314 | . 13 11 22 98 189 227 314 12 . 60 . . . . 215 94 . Average Temperature 61 | . 6 5 7 28 64 82 92 5 . 24 . . . . 77 47 . Received Heat Transfer 1075 | . 81 96 36 45 . 126 387 81 18 12 . . . . 184 . 9 Effects 3 | . . . . . . 1 . . . . . . . . 2 . . Interference 3 | . . . . . . 1 . . . . . . . . 2 . . Siege Activations . | . . . . . . . . . . . . . . . . . . Robots Corrupted 2 | . . . . . . . . . . 1 . . . . 1 . . Combat Hostiles 2 | . . . . . . . . . . 1 . . . . 1 . . Parts Fried 10 | . . . . . . . . . . 3 . . . . 7 . . Impact Corruptions . | . . . . . . . . . . . . . . . . . . Robots Melted 1 | . . . . . . . . . . . . . . . 1 . . Combat Hostiles 1 | . . . . . . . . . . . . . . . 1 . . Parts Melted 27 | . . . . . 21 . . . . . . . . . 6 . . Heat Transferred 4886 | . . 200 50 . 1931 . . . 2405 . . . . . 200 100 . Parts Sabotaged . | . . . . . . . . . . . . . . . . . . Parts Stolen . | . . . . . . . . . . . . . . . . . . Parts Stripped . | . . . . . . . . . . . . . . . . . . Power Chain Reactions 1 | . . . . . . . . . . . . . . . 1 . . Missiles Intercepted . | . . . . . . . . . . . . . . . . . . Alert | -11 -10 -10 -9 -9 -9 -8 -8 -7 -7 -6 -6 -6 -6 -5 -5 -5 -5 ------- Run | Jun Mat Min Mat Min Exi Min Mat Fac Sto Fac Low Low Dat Pro Fac Upp Upp Peak Influence 496 | . 211 135 423 223 . 159 387 479 496 291 . . . . 404 . . Initial 217 | . . 36 46 116 . . . 172 217 144 . . . . 79 . . Average 151 | . 62 65 271 106 . 41 122 279 381 195 . . . . 189 . . Maximum Alert Level 2 | . 1 . 2 1 . . 1 2 2 1 . . . . 2 . . Low Security (%) 64 | 100 82 100 13 76 . 100 80 11 . 50 . . . . 57 . . Level 1 31 | . 17 . 78 23 . . 19 69 55 49 . . . . 41 . . Level 2 4 | . . . 8 . . . . 18 44 . . . . . 1 . . Level 3 . | . . . . . . . . . . . . . . . . . . Level 4 . | . . . . . . . . . . . . . . . . . . Level 5 . | . . . . . . . . . . . . . . . . . . High Security . | . . . . . . . . . . . . . . . . . . Max Security . | . . . . . . . . . . . . . . . . . . Squads Dispatched 18 | . 1 . . . . . 2 4 1 4 . . . . 6 . . Investigation 7 | . . . . . . . . 3 . 2 . . . . 2 . . Extermination 2 | . . . . . . . . . . 1 . . . . 1 . . Reinforcement 9 | . 1 . . . . . 2 1 1 1 . . . . 3 . . Assault . | . . . . . . . . . . . . . . . . . . Garrison . | . . . . . . . . . . . . . . . . . . Intercept . | . . . . . . . . . . . . . . . . . . Searches Triggered . | . . . . . . . . . . . . . . . . . . Data Miner Redirects 2 | . . . . . . . . . . . . . . . 2 . . Construction Impeded . | . . . . . . . . . . . . . . . . . . Haulers Reinforced 1 | . . . . . . . . . 1 . . . . . . . . Active Scanning Responses . | . . . . . . . . . . . . . . . . . . Cargo Convoy Interrupts 1 | . . . . . . . . . . . . . . . 1 . . Stealth | -11 -10 -10 -9 -9 -9 -8 -8 -7 -7 -6 -6 -6 -6 -5 -5 -5 -5 --------- Run | Jun Mat Min Mat Min Exi Min Mat Fac Sto Fac Low Low Dat Pro Fac Upp Upp Distress Signals 11 | . . 1 2 . . . 4 . 2 . . . . . 2 . . Communications Jammed . | . . . . . . . . . . . . . . . . . . Distress Signals . | . . . . . . . . . . . . . . . . . . Times Spotted 215 | . 13 10 26 4 48 8 32 12 12 4 . 3 . 3 32 3 5 Peak Tracking Total 9 | . 4 3 5 2 9 3 7 7 4 2 . 3 . 3 7 2 8 Tactical Retreats 42 | . 1 1 1 . 28 . 1 2 1 . . . . 1 6 . . Traps | -11 -10 -10 -9 -9 -9 -8 -8 -7 -7 -6 -6 -6 -6 -5 -5 -5 -5 ------- Run | Jun Mat Min Mat Min Exi Min Mat Fac Sto Fac Low Low Dat Pro Fac Upp Upp Traps Triggered 7 | . 1 . 1 . . . 1 . 2 1 . . . . 1 . . Indirectly . | . . . . . . . . . . . . . . . . . . Trap Hack Attempts . | . . . . . . . . . . . . . . . . . . Triggered . | . . . . . . . . . . . . . . . . . . Disarmed . | . . . . . . . . . . . . . . . . . . Reprogrammed . | . . . . . . . . . . . . . . . . . . Reused . | . . . . . . . . . . . . . . . . . . Traps Extracted . | . . . . . . . . . . . . . . . . . . Installed . | . . . . . . . . . . . . . . . . . . Triggered 1 | . . . . . . . . . . . . . . . 1 . . Exploded 3 | . . . . . 3 . . . . . . . . . . . . Machines | -11 -10 -10 -9 -9 -9 -8 -8 -7 -7 -6 -6 -6 -6 -5 -5 -5 -5 ---------- Run | Jun Mat Min Mat Min Exi Min Mat Fac Sto Fac Low Low Dat Pro Fac Upp Upp Machines Disabled 17 | . 2 . 1 . 8 1 3 . 1 1 . . . . . . . Max in Single Turn 2 | . 2 . 1 . 1 1 1 . 1 1 . . . . . . . Garrison Access 4 | . . . . . . . . 1 1 1 . . . . 1 . . Machines Repaired . | . . . . . . . . . . . . . . . . . . Machines Sabotaged . | . . . . . . . . . . . . . . . . . . Overloaded Fab Kills . | . . . . . . . . . . . . . . . . . . Hacking | -11 -10 -10 -9 -9 -9 -8 -8 -7 -7 -6 -6 -6 -6 -5 -5 -5 -5 --------- Run | Jun Mat Min Mat Min Exi Min Mat Fac Sto Fac Low Low Dat Pro Fac Upp Upp Machines Accessed 50 | . 4 . 4 . 2 1 3 9 5 7 1 . 4 . 9 1 . Terminals 28 | . 4 . 3 . . 1 1 4 4 5 1 . . . 5 . . Fabricators 7 | . . . . . . . . 3 . 1 . . . . 3 . . Repair Stations 1 | . . . . . . . 1 . . . . . . . . . . Recycling Units . | . . . . . . . . . . . . . . . . . . Scanalyzers 3 | . . . 1 . . . 1 1 . . . . . . . . . Garrison Access 4 | . . . . . . . . 1 1 1 . . . . 1 . . Total Hacks 143 | . 13 . 12 . 2 3 10 21 7 21 5 . 25 . 23 1 . Successful 99 | . 1 . 7 . 2 1 6 16 5 14 5 . 25 . 16 1 . Failed 43 | . 12 . 5 . . 1 4 5 2 7 . . . . 7 . . Catastrophic 8 | . 1 . 2 . . . . 2 1 1 . . . . 1 . . Database Lockouts 1 | . . . . . . 1 . . . . . . . . . . . Manual 59 | . 13 . 8 . 1 4 1 10 2 10 . . . . 10 . . Terminals 67 | . 13 . 9 . . 3 2 9 6 10 5 . . . 10 . . Fabricators 30 | . . . . . . . . 9 . 10 . . . . 11 . . Repair Stations 2 | . . . . . . . 2 . . . . . . . . . . Recycling Units . | . . . . . . . . . . . . . . . . . . Scanalyzers 11 | . . . 3 . . . 6 2 . . . . . . . . . Garrison Access 5 | . . . . . . . . 1 1 1 . . . . 2 . . Terminal Hacks 56 | . 1 . 4 . 2 1 1 4 4 3 5 . 25 . 5 1 . Record 13 | . . . . . 1 . . . . . 5 . 7 . . . . Part Schematic 11 | . . . . . . . . . . 1 . . 10 . . . . Robot Schematic 5 | . . . . . . . . . . . . . 5 . . . . Robot Analysis 6 | . 1 . 2 . . 1 1 . 1 . . . . . . . . Prototype ID Bank 3 | . . . . . . . . . . . . . 3 . . . . Open Door 3 | . . . . . . . . . 2 . . . . . . 1 . Level Access Points 1 | . . . . . . . . . 1 . . . . . . . . Branch Access Points 3 | . . . . . . . . 1 . 1 . . . . 1 . . Machine Index 1 | . . . . . . . . . . . . . . . 1 . . Terminal Index 2 | . . . . . . . . 1 . 1 . . . . . . . Fabricator Index 1 | . . . . . . . . 1 . . . . . . . . . Hauler Manifests 2 | . . . . . . . . 1 . . . . . . 1 . . Zone Layout 4 | . . . 2 . . . . . . . . . . . 2 . . EX-Prototype ID Bank 1 | . . . . . 1 . . . . . . . . . . . . Fabricator Hacks 19 | . . . . . . . . 4 . 8 . . . . 7 . . Network Status 3 | . . . . . . . . 1 . 1 . . . . 1 . . Load Schematic 11 | . . . . . . . . 3 . 4 . . . . 4 . . Build 5 | . . . . . . . . . . 3 . . . . 2 . . Repair Station Hacks 2 | . . . . . . . 2 . . . . . . . . . . Scan Component 1 | . . . . . . . 1 . . . . . . . . . . Repair 1 | . . . . . . . 1 . . . . . . . . . . Recycling Unit Hacks . | . . . . . . . . . . . . . . . . . . Scanalyzer 8 | . . . 3 . . . 3 2 . . . . . . . . . Insert Component 3 | . . . 1 . . . 1 1 . . . . . . . . . Analyze 5 | . . . 2 . . . 2 1 . . . . . . . . . Garrison Access Hacks 4 | . . . . . . . . 1 1 1 . . . . 1 . . Seal Access 4 | . . . . . . . . 1 1 1 . . . . 1 . . Unauthorized Hacks 10 | . . . . . . . . 5 . 2 . . . . 3 . . Terminals 3 | . . . . . . . . 2 . . . . . . 1 . . Track 1 | . . . . . . . . . . . . . . . 1 . . Botnet 1 | . . . . . . . . 1 . . . . . . . . . Operators 1 | . . . . . . . . 1 . . . . . . . . . Fabricators 7 | . . . . . . . . 3 . 2 . . . . 2 . . Prioritize 1 | . . . . . . . . . . 1 . . . . . . . Recompile 6 | . . . . . . . . 3 . 1 . . . . 2 . . Repair Stations . | . . . . . . . . . . . . . . . . . . Recycling Units . | . . . . . . . . . . . . . . . . . . Scanalyzers . | . . . . . . . . . . . . . . . . . . Garrison Access . | . . . . . . . . . . . . . . . . . . Data Cores Recovered . | . . . . . . . . . . . . . . . . . . Used . | . . . . . . . . . . . . . . . . . . Hacking Detections 31 | . 4 . 4 . . . 2 7 1 5 1 . . . 7 . . Full Trace Events 4 | . 2 . 1 . . . . . . 1 . . . . . . . Feedback Events 1 | . . . . . . . . . . 1 . . . . . . . Hackware Fried 1 | . . . . . . . . . . 1 . . . . . . . Feedback Blocked . | . . . . . . . . . . . . . . . . . . Robot Schematics Acquired 5 | . . . . . . . . . . . . . 5 . . . . Robots Built . | . . . . . . . . . . . . . . . . . . Authchips . | . . . . . . . . . . . . . . . . . . Time . | . . . . . . . . . . . . . . . . . . Total Robot Build Rating . | . . . . . . . . . . . . . . . . . . Part Schematics Acquired 14 | . . . 1 . . . 1 1 . 1 . . 10 . . . . Parts Built 7 | . . . . . . . . . . 5 . . . . 2 . . Authchips 5 | . . . . . . . . . . 3 . . . . 2 . . Time 351 | . . . . . . . . . . 239 . . . . 112 . . Total Part Build Rating 49 | . . . . . . . . . . 37 . . . . 12 . . Parts Repaired 1 | . . . . . . . 1 . . . . . . . . . . Time 95 | . . . . . . . 95 . . . . . . . . . . Parts Recycled . | . . . . . . . . . . . . . . . . . . Recycled Matter . | . . . . . . . . . . . . . . . . . . Retrieved Matter . | . . . . . . . . . . . . . . . . . . Retrieved Components . | . . . . . . . . . . . . . . . . . . Parts Scanalyzed 3 | . . . 1 . . . 1 1 . . . . . . . . . Part Schematics Acquired 3 | . . . 1 . . . 1 1 . . . . . . . . . Parts Damaged 2 | . . . 1 . . . 1 . . . . . . . . . . Bothacking | -11 -10 -10 -9 -9 -9 -8 -8 -7 -7 -6 -6 -6 -6 -5 -5 -5 -5 ------------ Run | Jun Mat Min Mat Min Exi Min Mat Fac Sto Fac Low Low Dat Pro Fac Upp Upp Used RIF Installer . | . . . . . . . . . . . . . . . . . . Robots Hacked . | . . . . . . . . . . . . . . . . . . Non-combat . | . . . . . . . . . . . . . . . . . . Combat . | . . . . . . . . . . . . . . . . . . Robot Hacks Applied . | . . . . . . . . . . . . . . . . . . Relay Couplers Released . | . . . . . . . . . . . . . . . . . . Fabnet Peak Effective % . | . . . . . . . . . . . . . . . . . . Robots Rewired . | . . . . . . . . . . . . . . . . . . Allies Hacked . | . . . . . . . . . . . . . . . . . . Hacks Repelled . | . . . . . . . . . . . . . . . . . . Allies | -11 -10 -10 -9 -9 -9 -8 -8 -7 -7 -6 -6 -6 -6 -5 -5 -5 -5 -------- Run | Jun Mat Min Mat Min Exi Min Mat Fac Sto Fac Low Low Dat Pro Fac Upp Upp Total Allies 6 | . . 3 . 1 . . . . 1 . . . . 1 . . . Largest Group 3 | . . 3 3 2 . . . . 1 . . . . 1 . . . Highest-Rated Group 100 | . . 40 40 47 . . . . 100 . . . . 96 . . . Highest-Rated Ally 100 | . . 16 16 31 . . . . 100 . . . . 96 . . . Total Orders 22 | . . . . . . . . . . . . . . 1 . 15 6 EXPLORE 9 | . . . . . . . . . . . . . . . . 7 2 RETURN 13 | . . . . . . . . . . . . . . 1 . 8 4 Ally Attacks 198 | . . 13 60 17 . . . . 17 . . . . 19 . 35 37 Total Damage 3512 | . . 133 519 212 . . . . 508 . . . . 718 . 824 598 Kills 42 | . . 3 14 4 . . . . 4 . . . . 5 . 10 2 Allies Corrupted 1 | . . . 1 . . . . . . . . . . . . . . Allies Melted . | . . . . . . . . . . . . . . . . . . Intel | -11 -10 -10 -9 -9 -9 -8 -8 -7 -7 -6 -6 -6 -6 -5 -5 -5 -5 ------- Run | Jun Mat Min Mat Min Exi Min Mat Fac Sto Fac Low Low Dat Pro Fac Upp Upp Robot Analysis Total 6 | . 1 . 2 . . 1 1 . 1 . . . . . . . . Derelict Logs Recovered 6 | . . 1 . 1 . . . . . . . . . 2 . 2 . Drone Launches 23 | . . . . . . . . . . . . . . 1 2 16 4 Drone Recoveries 18 | . . . . . . . . . . . . . . 1 1 12 4 Exploration | -11 -10 -10 -9 -9 -9 -8 -8 -7 -7 -6 -6 -6 -6 -5 -5 -5 -5 ------------- Run | Jun Mat Min Mat Min Exi Min Mat Fac Sto Fac Low Low Dat Pro Fac Upp Upp Turns Passed 13332 | 75 684 1101 1278 922 2441 1319 1386 284 563 764 366 161 43 330 1084 495 36 Spaces Moved 8852 | 43 324 409 651 547 1029 521 464 638 350 852 388 282 80 443 1290 531 10 Core 5 | 5 . . . . . . . . . . . . . . . . . Treads 3983 | 38 324 409 651 547 1029 521 464 . . . . . . . . . . Legs . | . . . . . . . . . . . . . . . . . . Wheels . | . . . . . . . . . . . . . . . . . . Hover 3905 | . . . . . . . . . 29 852 388 282 80 443 1290 531 10 Flight 959 | . . . . . . . . 638 321 . . . . . . . . Fastest Speed 29 | 50 160 240 160 160 160 240 240 29 29 52 54 54 54 54 54 54 62 Average Speed 117 | 147 187 240 167 160 190 240 240 29 30 54 54 54 54 54 54 61 62 Slowest Speed 240 | 160 240 240 240 160 240 240 240 99 61 71 54 54 54 54 54 62 62 Overloaded Moves . | . . . . . . . . . . . . . . . . . . Propulsion Burnouts . | . . . . . . . . . . . . . . . . . . Robots Hopped 12 | . . . . . . . . 9 3 . . . . . . . . Cave-ins Triggered . | . . . . . . . . . . . . . . . . . . Exploration Rate (%) 56 | 3 60 82 61 92 91 87 53 12 57 18 62 51 74 65 38 98 14 Regions Visited 17 Branch Regions 11 Pre-discovered Areas 2 | . . . . . 1 . . . . . . . 1 . . . . Known Exits Taken 12 | . . . 1 . 1 . 1 1 1 1 1 1 1 1 1 1 . Unknown Exits Taken 5 | 1 1 1 . 1 . 1 . . . . . . . . . . . Scrap Searched 15 | . . 2 . 2 . 1 . . . . 2 3 . 4 . 1 . Spaces Dug 79 | . . . . . . . 6 . . 14 10 2 . 17 30 . . Terrain Destroyed 253 | . 4 20 3 . 22 78 19 1 11 30 10 2 . 17 36 . . Melee 73 | . . . . . . . . . . 14 10 2 . 17 30 . . Projectile 27 | . . . . . 14 11 . 1 . . . . . . 1 . . AOE 150 | . 4 20 3 . 5 67 19 . 11 16 . . . . 5 . . Terrain Rammed . | . . . . . . . . . . . . . . . . . . Walls Destroyed . | . . . . . . . . . . . . . . . . . . Machines Disabled . | . . . . . . . . . . . . . . . . . . Actions | -11 -10 -10 -9 -9 -9 -8 -8 -7 -7 -6 -6 -6 -6 -5 -5 -5 -5 --------- Run | Jun Mat Min Mat Min Exi Min Mat Fac Sto Fac Low Low Dat Pro Fac Upp Upp Total 10831 | 51 378 474 768 587 1286 556 636 725 584 1101 526 286 79 502 1564 692 36 Wait 947 | . 25 22 12 11 34 3 45 44 82 187 125 3 . 39 148 143 24 Move 8811 | 42 323 408 650 546 1028 520 463 619 343 851 387 281 79 442 1289 530 10 Hop 12 | . . . . . . . . 9 3 . . . . . . . . Pick Up 118 | 2 8 2 24 7 23 1 20 7 2 3 3 . . 2 11 3 . Fast Attach 44 | 6 2 2 6 . 5 . 6 . 10 4 . . . . 3 . . Attach 55 | . . 4 3 . 14 1 3 13 4 5 . . . . 6 2 . Detach 35 | . 1 . 5 . 8 . 2 7 7 2 . . . . 1 2 . Swap 82 | 1 3 2 6 3 11 6 8 2 7 16 1 . . 2 14 . . Drop 114 | . 4 . 16 10 21 2 21 15 13 2 . . . . 6 4 . Fire 503 | . 12 34 46 10 142 22 68 9 113 9 . . . . 36 2 . Melee 92 | . . . . . . . . . . 17 10 2 . 17 41 3 2 Ram . | . . . . . . . . . . . . . . . . . . Kick . | . . . . . . . . . . . . . . . . . . Crush 1 | . . . . . . 1 . . . . . . . . . . . Escape Stasis 14 | . . . . . . . . . . 5 . . . . 9 . . Rewire . | . . . . . . . . . . . . . . . . . . Trap . | . . . . . . . . . . . . . . . . . . Miscellaneous 3 | . . . . . . . . . . . . . . . . 3 . Route ------- -11/Junkyard -10/Materials (discovered 2 exits: *Mat / [*Min]) -10/Mines (discovered 2 exits: *Mat x2) -9/Materials (discovered 3 exits: *Mat x2 / *Min) -9/Mines (discovered 4 exits: *Mat x2 / *Exi / [*Zio]) -9/Exiles -8/Mines (discovered 2 exits: *Mat x2) -8/Materials -7/Factory (discovered 5 exits: *Fac / *Sto x2 / Low x2) -7/Storage -6/Factory (discovered 3 exits: *Fac / *Low x2) -6/Lower Caves -6/Lower Caves (discovered 2 exits: *Fac / *Dat) -6/Data Miner -5/Proximity Caves -5/Factory (discovered 5 exits: [*Fac] / *Upp x2 / Ext x2) -5/Upper Caves -5/Upper Caves (discovered 1 exit: [*Fac]) History --------- Turn | Location | Event 3 | -11/Junkyard | Discovered new exit (range 15) 76 | -11/Junkyard | Entered Materials 302 | -10/Materials | Build established: Mutant 594 | -10/Materials | Discovered new exit (range 8) 673 | -10/Materials | Discovered new exit (range 6) 760 | -10/Materials | Entered Mines 884 | -10/Mines | Received a Rocket Launcher from a helpful Derelict 1138 | -10/Mines | Assembled infested the area 1249 | -10/Mines | Lost 5 parts (1p1n3w) 1343 | -10/Mines | Assisted by bots powering up and referring to "LRC-V3" 1484 | -10/Mines | Discovered new exit (range 7) 1748 | -10/Mines | Discovered new exit (range 9) 1861 | -10/Mines | Entered Materials 1861 | -9/Materials | Accompanied by 3 allies 1861 | -9/Materials | Evolved 2 slots: Propulsion x1, Utility x1 1862 | -9/Materials | Identified exit to Mines 2342 | -9/Materials | Build established: Scavenger-Mutant 2559 | -9/Materials | Discovered new exit (range 15) 2820 | -9/Materials | Discovered new exit (range 3) 3139 | -9/Materials | Entered Mines 3139 | -9/Mines | Accompanied by 1 ally 3217 | -9/Mines | Received a Mining Laser from a helpful Derelict 3393 | -9/Mines | Discovered new exit (range 5) 3407 | -9/Mines | A Derelict revealed a hidden shortcut to a safe place 3408 | -9/Mines | Learned location of 1 exit from Materials 3867 | -9/Mines | Discovered new exit (range 13) 3952 | -9/Mines | Build established: Mutant 4055 | -9/Mines | Deemed a non-threat by the Exiles lab entrance 4055 | -9/Mines | Discovered new exit (range 5) 4061 | -9/Mines | Entered Exiles 4062 | -9/Exiles | Identified exit to Mines 4105 | -9/Exiles | Met 8R-AWN 4132 | -9/Exiles | Met EX-HEX 4203 | -9/Exiles | Met EX-DEC 4233 | -9/Exiles | Learned location of Zion (-7) 4265 | -9/Exiles | Met EX-BIN 4287 | -9/Exiles | Aligned with FarCom system 4289 | -9/Exiles | Given EX-Vault access code 4331 | -9/Exiles | Opened EX-Vault 4341 | -9/Exiles | Found Cloak of Protection 4374 | -9/Exiles | Warned to stay clear of 0b10 Research branches 4885 | -9/Exiles | Attacked by the Exiles 5067 | -9/Exiles | Destroyed 8R-AWN 5073 | -9/Exiles | Found Prototype Ballistic Gun 5077 | -9/Exiles | Found Prototype Ballistic Gun 5077 | -9/Exiles | Identified 8R-AWN's Boregun (x2) 5082 | -9/Exiles | Found Prototype Processor 5090 | -9/Exiles | Lost 4 parts (1p2n1u) 5102 | -9/Exiles | Found Prototype Device 5102 | -9/Exiles | Identified AS-neutralizer No. 17b 5378 | -9/Exiles | Lost 4 parts (1p1n1u1w) 5891 | -9/Exiles | Build established: Scavenger-Mutant 6035 | -9/Exiles | Destroyed EX-DEC 6076 | -9/Exiles | Destroyed EX-BIN 6127 | -9/Exiles | Destroyed EX-HEX 6168 | -9/Exiles | Found Prototype Device 6168 | -9/Exiles | Identified System Purifier 6490 | -9/Exiles | Identified Exp. Targeting Computer 6502 | -9/Exiles | Entered Mines 6832 | -8/Mines | Central database locked down 7610 | -8/Mines | Discovered new exit (range 8) 7774 | -8/Mines | Discovered new exit (range 15) 7821 | -8/Mines | Entered Materials 7821 | -8/Materials | Evolved 2 slots: Utility x2 7822 | -8/Materials | Identified exit to Factory 8279 | -8/Materials | Repaired Broken Cmb. Antigrav System? 9057 | -8/Materials | Destroyed 7 combat bots 9207 | -8/Materials | Entered Factory 9207 | -7/Factory | Evolved 2 slots: Utility x2 9241 | -7/Factory | Identified exit to Storage 9241 | -7/Factory | Identified exit to Lower Caves 9283 | -7/Factory | Discovered new exit (range 4) 9284 | -7/Factory | Identified exit to Factory 9491 | -7/Factory | Entered Storage 9610 | -7/Storage | Met 01-MTF 10017 | -7/Storage | Destroyed 01-MTF 10032 | -7/Storage | Found 01-MTF's Shockpuncher 10043 | -7/Storage | Found Prototype Device 10054 | -7/Storage | Entered Factory 10054 | -6/Factory | Evolved 2 slots: Propulsion x1, Utility x1 10065 | -6/Factory | Identified exit to Lower Caves 10230 | -6/Factory | Hacking Suite fried by hacking feedback 10247 | -6/Factory | Fabricated Cmb. Antigrav System? 10308 | -6/Factory | Fabricated Adv. Sensor Array? 10320 | -6/Factory | Build established: Scavenger-Scout 10414 | -6/Factory | Fabricated Cmb. Antigrav System (x2) 10452 | -6/Factory | Identified 01-MTF's Autohacker 10506 | -6/Factory | Discovered new exit (range 20) 10804 | -6/Factory | Identified exit to Factory 10818 | -6/Factory | Entered Lower Caves 10865 | -6/Lower Caves | Learned Extension terminal intel 10865 | -6/Lower Caves | Learned Extension security intel 10865 | -6/Lower Caves | Learned Factory security intel 10865 | -6/Lower Caves | Learned Research emergency access door positions 10865 | -6/Lower Caves | Learned Research trap positions 11180 | -6/Lower Caves | Discovered new exit (range 10) 11184 | -6/Lower Caves | Identified exit to Lower Caves 11184 | -6/Lower Caves | Entered another Lower Caves area 11187 | -6/Lower Caves | Discovered exit to Factory (range 14) 11334 | -6/Lower Caves | Discovered new exit (range 11) 11344 | -6/Lower Caves | Identified exit to Data Miner 11345 | -6/Lower Caves | Entered Data Miner 11345 | -6/Data Miner | Discovered new exit (range 6) 11353 | -6/Data Miner | Met Data Miner 11369 | -6/Data Miner | Learned location of Section 7 (-2) 11369 | -6/Data Miner | Acquired the access code to Warlord's prototype stash 11375 | -6/Data Miner | Received God Mode back door access code from Data Miner 11388 | -6/Data Miner | Identified exit to Proximity Caves 11388 | -6/Data Miner | Entered Proximity Caves 11518 | -5/Proximity Caves | Escorted by Enhanced Grunt 11591 | -5/Proximity Caves | Learned Factory stockpile data 11718 | -5/Proximity Caves | Entered Factory 11718 | -5/Factory | Evolved 2 slots: Utility x2 11833 | -5/Factory | Identified exit to Upper Caves 11833 | -5/Factory | Identified exit to Extension 12282 | -5/Factory | Fabricated Combat Drone Bay? 12302 | -5/Factory | Discovered new exit (range 4) 12422 | -5/Factory | Incoming investigation squad redirected 12493 | -5/Factory | Incoming investigation squad redirected 12568 | -5/Factory | Fabricated Combat Drone Bay? 12721 | -5/Factory | Cargo convoy interrupted 12802 | -5/Factory | Entered Upper Caves 12870 | -5/Upper Caves | Attracted the attention of an 0b10 checkpoint 12957 | -5/Upper Caves | Learned Factory terminal intel 12965 | -5/Upper Caves | Identified exit to Upper Caves 12983 | -5/Upper Caves | Build established: Hacker-Scout 13297 | -5/Upper Caves | Entered another Upper Caves area 13297 | -5/Upper Caves | Accompanied by 3 allies 13300 | -5/Upper Caves | Discovered new exit (range 14) 13325 | -5/Upper Caves | Attracted the attention of an 0b10 checkpoint 13333 | -5/Upper Caves | Self-destructed Last Messages --------------- 13325_ Y-64 Sentinel: "INTERCEPTING UNREGISTERED DERELICT." 13325_ Carbon-fiber Leg fries itself beyond repair. 13325_ Combat Drone retrieved by Combat Drone Bay. 13326_ Mic. Nuclear Core destroyed. 13327_ Combat Drone released from Combat Drone Bay. 13327_ Slug penetrates Y-64 Sentinel. 13327_ Adv. Sensor Array destroyed. 13328_ Combat Drone released from Combat Drone Bay. 13328_ Slug penetrates Wall. 13328_ Slug penetrates Y-64 Sentinel. 13329_ Slug penetrates S-27 Virus. 13329_ S-27 Virus destroyed. 13329_ Slug penetrates Y-64 Sentinel. 13330_ Penetrated by Slug. 13330_ Slug penetrates Y-64 Sentinel. 13330_ Slug penetrates Wall. 13331_ Slug penetrates Y-64 Sentinel. 13331_ Slug penetrates Wall. 13331_ Slug penetrates Y-64 Sentinel. 13332_ Adv. Heat Sink fries itself beyond repair. Map ----- +----------------------------------------------------+ | ?????????????????????????????????????????????????? | | ?????????????????????????????????????????????????? | | ?????????????????????????????????????????????????? | | ?????????????????????????????????????????????????? | | ?????????????????????????????????????????????????? | | ?????????????????????????????????????????????????? | | ?????????????????????????????????????????????????? | | ?????????????????????????? ?????????????????????? | | ????????????????????????? ####?????????????????? | | ?????????????????????????? #????????????????? | | ?????????????????????????? ##??????????????? | | ??????????????????????????? ????###???????? | | ????????????????####???????? ##?# #???????? | | ???????????????## #???????? ## #???????? | | ???????????????? #???????? #???????? | | ????????????????? ###?????# #???????? | | ?????????????????? ?????# #???????? | | ??????????????????? ?????# ?????????? | | ???????????????????# ????## #?????????? | | ????????????????????# ##### #?????????? | | ???????????????????## #?????????? | | ???????????????????# #????????#? | | ?????????????????????? #??????# ## | | ???????????????????????# Y## #????? | | ???????????????????????# n #??# ##### | | ???????????????????????# @n#??######### | | ???????????????????????##n ####?###??# | | ????????????????????????## ### ##?# | | ?????????????????????????# ### | | ?????????????????????????# g | | ?????????????????????????## g % | | ???????????????????#??????## % | | ?????????????????# # #### ## | | ??????????????????# ### | | ????????? =%% $ #?# | | ?????????## ### <% ####### # | | ????????????????##" ????????##### | | ????????????????????????????????## ## | | ?????????????????????????????????# ##?# | | ?????????????????????????????????# #??? | | ?????????????????????????????????#######??? | | ??????????????????????????????????????????? ###### | | ????????????????????????????????????????????#????? | | ?????????????????????????????????????????????????? | | ?????????????????????????????????????????????????? | | ?????????????????????????????????????????????????? | | ?????????????????????????????????????????????????? | | ?????????????????????????????????????????????????? | | ?????????????????????????????????????????????????? | | ?????????????????????????????????????????????????? | +----------------------------------------------------+ Best States ------------- Heat Dissipation 48 Energy Generation 21 Energy Capacity 670 Matter Stores 300 Matter Capacity 300 Sight Range 22 Robot Scan Range 16 Terrain Scan Density 10 Cloak Strength 5 Armor Coverage 375 Resistance: EM 15 Weapon Shielding 33 Evasion (%) 64 Targeting Accuracy 12 Core Analysis 6 Recoil Reduction 3 Offensive Hacking 46 Authchip Count 3 Item Schematics ----------------- Lgt. Treads | -9/Materials | Scanalyzed Cmb. Antigrav System | -8/Materials | Scanalyzed Adv. Transmission Jammer | -7/Factory | Scanalyzed Adv. Sensor Array | -6/Factory | Hacked Combat Drone Bay | -6/Data Miner | Free Lgt. Regenerative Plating | -6/Data Miner | Free Cld. Gravmag System | -6/Data Miner | Free Imp. Energy Well | -6/Data Miner | Free Tiamat Missile Launcher | -6/Data Miner | Free Myomer Leg | -6/Data Miner | Free Lrn. Sensor Array | -6/Data Miner | Free Phase Gun | -6/Data Miner | Free Imp. Gyrokinetic Inverter | -6/Data Miner | Free Hvy. Disruptor Cannon | -6/Data Miner | Free Robot Schematics ------------------ C-35 Carver | -6/Data Miner | Free X-67 Chaingunner | -6/Data Miner | Free A-15 Conveyor | -6/Data Miner | Free Y-54 Guardian | -6/Data Miner | Free A-27 Freighter | -6/Data Miner | Free Fabricated ------------ Cmb. Antigrav System | x2 | -6/Factory | Authchip Adv. Sensor Array | x1 | -6/Factory | Authchip Cmb. Antigrav System | x2 | -6/Factory | Authchip Combat Drone Bay | x1 | -5/Factory | Authchip Combat Drone Bay | x1 | -5/Factory | Authchip Alien Tech Used ----------------- None Achievements -------------- None Challenges ------------ None Game ------ Seed ActiveNullShield Manual? 0 Play Time 01:49:59 Cumulative 330.3 hours Start 2023.03.04 @ 10:34:41 End 2023.03.04 @ 12:48:55 Sessions 1 Manual Loads 0 Difficulty Rogue Special Mode None Game No. 435 Rogue 348 Adventurer 87 Explorer 0 Win Type - Total 12 Types 6/0/4/1/1/0/0/0/0 Lore% 85 Gallery% 86 Achievement% 73 Wizard Run 0 Options --------- ASCII 0 Keyboard 1 Movement Numpad Keybinds 0 Fullscreen 1 Font 18/SmallcapsGlow Map View 76x50 Tactical HUD 1 Map Filters NONE Filters NONE Steam 1 RUN: 37f4cb05-584a-4c33-ab0c-eb3580d5d123